fUSD/lending_fUSD_20240205
["ID","MTS","AMOUNT","RATE_DAILY","PERIOD"]
[313305220,1707127868994,-500.0,0.00044383,7]
[313305221,1707127869008,-563.13,0.00044383,7]
[313305222,1707127869023,-500.0,0.00044383,7]
[313305223,1707127869038,-869.02,0.00044383,7]
[313305224,1707127869053,-500.0,0.00044383,7]
[313305225,1707127869067,-500.0,0.00044383,7]
[313305226,1707127869082,-1336.9,0.00044383,7]
[313305227,1707127869097,-500.0,0.00044383,7]
[313305228,1707127869111,-1664.03,0.00044383,7]
[313305229,1707127869126,-500.0,0.00044383,7]
[313305230,1707127869141,-500.0,0.00044383,7]
[313305231,1707127869155,-522.17,0.00044383,7]
[313305232,1707127869171,-911.82,0.00044383,7]
[313305233,1707127869187,-876.24,0.00044383,7]
[313305234,1707127869204,-500.0,0.00044383,7]
[313305235,1707127869218,-1208.95,0.00044383,7]
[313305236,1707127869234,-500.0,0.00044383,7]
[313305237,1707127869249,-500.0,0.00044383,7]
[313305238,1707127869263,-500.0,0.00044383,7]
[313305239,1707127869277,-2208.28,0.00044383,5]
[313305240,1707127869292,-991.16,0.00044383,7]
[313305241,1707127869309,-500.0,0.00044383,7]
[313305242,1707127869323,-500.0,0.00044383,7]
[313305243,1707127869337,-500.0,0.00044383,7]
[313305244,1707127869351,-4873.25,0.00044383,7]
[313305245,1707127869366,-500.0,0.00044383,7]
[313305246,1707127869381,-500.0,0.00044383,7]
[313305247,1707127869395,-1507.15,0.00044383,7]
[313305248,1707127869409,-500.0,0.00044383,7]
[313305249,1707127869424,-500.0,0.00044383,7]
[313305250,1707127869439,-500.0,0.00044383,7]
[313305251,1707127869453,-500.0,0.00044383,7]
[313305252,1707127869468,-724.44,0.00044383,7]
[313305253,1707127869482,-890.52,0.00044383,7]
[313305254,1707127869498,-500.0,0.00044383,7]
[313305255,1707127869513,-829.46,0.00044383,7]
[313305256,1707127869528,-611.71,0.00044383,7]
[313305257,1707127869659,-500.0,0.00044383,7]
[313305258,1707127869669,-601.25305826,0.00044383,7]
[313305259,1707127869678,-556.31,0.00044383,7]
[313305260,1707127869687,-687.93,0.00044383,7]
[313305261,1707127869696,-832.51,0.00044383,7]
[313305262,1707127869705,-871.11,0.00044383,7]
[313305263,1707127869714,-500.0,0.00044383,7]
[313305264,1707127869723,-500.0,0.00044383,7]
[313305265,1707127869733,-1243.36,0.00044383,7]
[313305266,1707127869742,-500.0,0.00044383,7]
[313305267,1707127869751,-3012.41,0.00044383,7]
[313305268,1707127869760,-500.0,0.00044383,7]
[313305269,1707127869769,-500.0,0.00044383,7]
[313305270,1707127869780,-590.23,0.00044383,7]
[313305271,1707127869790,-500.0,0.00044383,7]
[313305272,1707127869799,-500.0,0.00044383,7]
[313305273,1707127869808,-500.0,0.00044383,7]
[313305274,1707127869818,-500.0,0.00044383,7]
[313305275,1707127869827,-3014.28,0.00044383,7]
[313305276,1707127869836,-621.05,0.00044383,7]
[313305277,1707127869846,-589.53,0.00044383,7]
[313305278,1707127869855,-500.0,0.00044383,7]
[313305279,1707127869864,-500.0,0.00044383,7]
[313305280,1707127869873,-830.56,0.00044383,7]
[313305281,1707127869882,-1035.44,0.00044383,7]
[313305282,1707127869891,-1902.12,0.00044383,7]
[313305283,1707127869901,-2847.02,0.00044383,7]
[313305284,1707127869911,-807.95,0.00044383,7]
[313305285,1707127869920,-500.0,0.00044383,7]
[313305286,1707127869929,-500.0,0.00044383,7]
[313305287,1707127869938,-500.0,0.00044383,7]
[313305288,1707127869947,-500.0,0.00044383,7]
[313305289,1707127869956,-500.0,0.00044383,7]
[313305290,1707127869966,-536.86,0.00044383,7]
[313305291,1707127869976,-2651.98,0.00044383,7]
[313305292,1707127869985,-500.0,0.00044383,7]
[313305293,1707127869994,-500.0,0.00044383,7]
[313305294,1707127870005,-1214.43,0.00044383,7]
[313305295,1707127870014,-500.0,0.00044383,7]
[313305296,1707127870025,-753.45,0.00044383,7]
[313305297,1707127870034,-500.0,0.00044383,7]
[313305298,1707127870043,-500.0,0.00044383,7]
[313305299,1707127870053,-622.87,0.00044383,7]
[313305300,1707127870062,-1152.32,0.00044383,7]
[313305301,1707127870072,-1196.94,0.00044383,7]
[313305302,1707127870081,-430.0,0.00044383,7]
[313305303,1707127870091,-550.39667227,0.00044383,7]
[313305304,1707127870100,-500.0,0.00044383,7]
[313305305,1707127870110,-460.27715439,0.00044383,7]
[313305306,1707127870119,-530.27,0.00044383,7]
[313305307,1707127870129,-525.01,0.00044383,7]
[313305308,1707127870138,-285.04,0.00044383,7]
[313305309,1707127870148,-500.0,0.00044383,7]
[313305310,1707127870158,-500.0,0.00044383,7]
[313305311,1707127870167,-1136.73,0.00044383,7]
[313305312,1707127870177,-500.0,0.00044383,7]
[313305313,1707127870187,-500.0,0.00044383,7]
[313305314,1707127870197,-500.0,0.00044383,7]
[313305315,1707127870207,-500.0,0.00044383,7]
[313305316,1707127870217,-768.14,0.00044383,7]
[313305317,1707127870227,-500.0,0.00044383,7]
[313305318,1707127870237,-500.0,0.00044383,7]
[313305319,1707127870246,-1043.92,0.00044383,7]
[313305320,1707127870256,-717.13,0.00044383,7]
[313305321,1707127870265,-468.54323847,0.00044383,7]
[313305322,1707127870274,-500.0,0.00044383,7]
[313305323,1707127870284,-500.0,0.00044383,7]
[313305324,1707127870294,-500.0,0.00044383,7]
[313305325,1707127870306,-567.71,0.00044383,7]
[313305326,1707127870315,-2573.61,0.00044383,7]
[313305327,1707127870325,-732.21,0.00044383,7]
[313305328,1707127870335,-2569.02,0.00044383,7]
[313305329,1707127870344,-500.0,0.00044383,7]
[313305330,1707127870353,-585.77,0.00044383,7]
[313305331,1707127870363,-500.0,0.00044383,7]
[313305332,1707127870373,-500.0,0.00044383,7]
[313305333,1707127870382,-500.0,0.00044383,7]
[313305334,1707127870392,-500.0,0.00044383,7]
[313305335,1707127870402,-500.0,0.00044383,7]
[313305336,1707127870411,-500.0,0.00044383,7]
[313305337,1707127870420,-500.0,0.00044383,7]
[313305338,1707127870429,-500.0,0.00044383,7]
[313305339,1707127870439,-500.0,0.00044383,7]
[313305340,1707127870449,-500.0,0.00044383,7]
[313305341,1707127870459,-500.0,0.00044383,7]
[313305342,1707127870468,-500.0,0.00044383,7]
[313305343,1707127870477,-500.0,0.00044383,7]
[313305344,1707127870487,-500.0,0.00044383,7]
[313305345,1707127870497,-520.79,0.00044383,7]
[313305346,1707127870506,-500.0,0.00044383,7]
[313305347,1707127870516,-500.0,0.00044383,7]
[313305348,1707127870525,-1414.46,0.00044383,7]
[313305349,1707127870535,-492.82354271,0.00044383,7]
[313305350,1707127870544,-655.39,0.00044383,7]
[313305351,1707127870554,-842.26,0.00044383,7]
[313305352,1707127870564,-500.0,0.00044383,7]
[313305353,1707127870573,-500.0,0.00044383,7]
[313305354,1707127870583,-664.86,0.00044383,7]
[313305355,1707127870593,-500.0,0.00044383,7]
[313305356,1707127870602,-1278.72,0.00044383,7]
[313305357,1707127870612,-500.0,0.00044383,7]
[313305358,1707127870622,-606.87,0.00044383,7]
[313305359,1707127870631,-500.0,0.00044383,7]
[313305360,1707127870640,-850.58,0.00044383,7]
[313305361,1707127870650,-776.81,0.00044383,7]
[313305362,1707127870659,-500.0,0.00044383,7]
[313305363,1707127870669,-500.0,0.00044383,7]
[313305364,1707127870679,-500.0,0.00044383,7]
[313305365,1707127870690,-685.65,0.00044383,7]
[313305366,1707127870700,-500.0,0.00044383,7]
[313305367,1707127870710,-524.3,0.00044383,7]
[313305368,1707127870720,-500.0,0.00044383,7]
[313305369,1707127870730,-500.0,0.00044383,7]
[313305370,1707127870739,-500.0,0.00044383,7]
[313305371,1707127870749,-500.0,0.00044383,7]
[313305372,1707127870759,-1060.32,0.00044383,7]
[313305373,1707127870770,-1737.35,0.00044383,7]
[313305374,1707127870780,-500.0,0.00044383,7]
[313305375,1707127870790,-500.0,0.00044383,7]
[313305376,1707127870799,-500.0,0.00044383,7]
[313305377,1707127870809,-500.0,0.00044383,7]
[313305378,1707127870818,-144.8346825,0.00044383,7]
[313305379,1707127871123,-355.1653175,0.00044383,7]
[313305380,1707127871133,-781.78,0.00044383,7]
[313305381,1707127871144,-500.0,0.00044383,7]
[313305382,1707127871153,-500.0,0.00044383,7]
[313305383,1707127871162,-824.44,0.00044383,7]
[313305384,1707127871172,-500.0,0.00044383,7]
[313305385,1707127871181,-500.0,0.00044383,7]
[313305386,1707127871190,-500.0,0.00044383,7]
[313305387,1707127871202,-500.0,0.00044383,7]
[313305388,1707127871212,-500.0,0.00044383,7]
[313305389,1707127871222,-3430.5,0.00044383,7]
[313305390,1707127871233,-500.0,0.00044383,7]
[313305391,1707127871242,-500.0,0.00044383,7]
[313305392,1707127871252,-500.0,0.00044383,7]
[313305393,1707127871262,-1266.59,0.00044383,7]
[313305394,1707127871272,-2414.76,0.00044383,5]
[313305395,1707127871283,-500.0,0.00044383,7]
[313305396,1707127871293,-500.0,0.00044383,7]
[313305397,1707127871303,-585.33,0.00044383,7]
[313305398,1707127871312,-1135.81,0.00044383,7]
[313305399,1707127871323,-500.0,0.00044383,7]
[313305400,1707127871333,-1049.13,0.00044383,7]
[313305401,1707127871343,-8730.68426037,0.00044383,7]
[313305402,1707127871356,-2196.62573963,0.00044383,7]
[313305403,1707127871365,-91.58741803,0.00044383,7]
[313305404,1707127871378,-408.41258197,0.00044383,7]
[313305405,1707127871387,-500.0,0.00044383,7]
[313305406,1707127871396,-1913.87249272,0.000444,19]
[313305407,1707127871407,-2159.7108,0.000444,19]
[313305408,1707127871433,-500.0,0.00042739,7]
[313305409,1707127871442,-1253.99361383,0.000444,19]
[313305410,1707127871454,-216.88526349,0.000444,19]
[313305411,1707127871463,-198.19783749,0.0004448,2]
[313305412,1707127871473,-200.0,0.000445,30]
[313305413,1707127871482,-166.14041328,0.00044542,30]
[313305414,1707127871492,-19108.42120271,0.0004455,5]
[313305415,1707127871501,-474.62566968,0.0004455,5]
[313305416,1707127871510,-189.17,0.00044575,2]
[313305417,1707127871520,-1045.51854264,0.00044585,11]
[313305418,1707127871530,-150.0,0.0004462,2]
[313305419,1707127871539,-1126.2969768,0.00044641,10]
[313305420,1707127871548,-1365.97587033,0.00044666,5]
[313305421,1707127872002,-485.8,0.00041084,10]
[313305422,1707127872011,-1283.01876302,0.00042829,2]
[313305423,1707127872021,-500.0,0.00043561,7]
[313305424,1707127872031,-500.0,0.00044383,7]
[313305425,1707127872040,-644.22262967,0.00044666,5]
[313305426,1707127872050,-2013.7192,0.00044666,5]
[313305427,1707127872059,-501.97,0.000447,14]
[313305428,1707127872069,-500.0,0.000448,5]
[313305429,1707127872078,-399.86559,0.000448,17]
[313305430,1707127872088,-226.0,0.000448,34]
[313305431,1707127872098,-1881.711371,0.000448,21]
[313305432,1707127872108,-923.532087,0.00044852,30]
[313305433,1707127872118,-258.42375054,0.00044888,4]
[313305434,1707127872128,-500.0,0.00044889,7]
[313305435,1707127872138,-500.0,0.0004489,21]
[313305436,1707127872147,-2158.69983681,0.000449,30]
[313305437,1707127872157,-4639.74,0.000449,7]
[313305438,1707127872167,-1251.0,0.000449,30]
[313305439,1707127872177,-5544.46217004,0.000449,20]
[313305440,1707127872188,-155.42920267,0.00044917,4]
[313305441,1707127872198,-1059.63251296,0.00044917,4]
[313305442,1707127872209,-5956.65491106,0.00044918,4]
[313305443,1707127872219,-312.42541647,0.00044937,4]
[313305444,1707127872230,-230.43594835,0.0004498,5]
[313305445,1707127872239,-5000.0,0.00044986,4]
[313305446,1707127872249,-235.0,0.0004499,2]
[313305447,1707127872259,-163.0,0.0004499,2]
[313305448,1707127872269,-500.0,0.00044999,7]
[313305449,1707127872279,-187.66035888,0.00044999,39]
[313305450,1707127872290,-100000.0,0.00045,35]
[313305451,1707127872299,-168.77995614,0.00045,7]
[313305452,1707127872309,-302.64868085,0.00045,14]
[313305453,1707127872319,-1002.99,0.00045,4]
[313305454,1707127872329,-2551.58441197,0.00045,30]
[313305455,1707127872340,-566.05,0.00045,30]
[313305456,1707127872351,-46882.36558803,0.00045,30]
[313305457,1707127872361,-1173.93,0.00045,30]
[313305458,1707127872370,-1481.38,0.00045,120]
[313305459,1707127872379,-342.56,0.00045,10]
[313305460,1707127872389,-1510.0,0.00045,20]
[313305461,1707127872399,-4823.21408448,0.00045,17]
[313305462,1707127872408,-500.0,0.00045,2]
[313305463,1707127872417,-8698.0,0.00045,7]
[313305464,1707127872426,-7311.13985317,0.00045,30]
[313305465,1707127872435,-165.89,0.00045,7]
[313305466,1707127872444,-4870.87,0.00045,7]
[313305467,1707127872454,-1000.0,0.00045,120]
[313305468,1707127872464,-4097.00230921,0.00045,20]
[313305469,1707127872474,-419.26695089,0.00045,2]
[313305470,1707127872483,-119233.96104488,0.00045,120]
[313305471,1707127872492,-500.0,0.00045,7]
[313305472,1707127872501,-3331.79641413,0.00045,60]
[313305473,1707127872511,-5075.24458727,0.00045,2]
[313305474,1707127872520,-5884.78,0.00045,120]
[313305475,1707127872531,-869.97,0.00045,120]
[313305476,1707127872540,-1737.417779,0.00045,17]
[313305477,1707127872549,-12000.0,0.00045,120]
[313305478,1707127872558,-150.0,0.00045,20]
[313305479,1707127872567,-1998.52,0.00045,120]
[313305480,1707127872577,-500.0,0.00045087,7]
[313305481,1707127872586,-500.0,0.00045087,7]
[313305482,1707127872595,-500.0,0.00045087,7]
[313305483,1707127872604,-500.0,0.00045087,7]
[313305484,1707127872613,-500.0,0.00045087,7]
[313305485,1707127872623,-500.0,0.00045087,7]
[313305486,1707127872632,-1000.0,0.00045087,7]
[313305487,1707127872642,-1000.0,0.00045087,7]
[313305488,1707127872652,-500.0,0.00045087,7]
[313305489,1707127872661,-500.0,0.00045087,7]
[313305490,1707127872671,-500.0,0.00045087,7]
[313305491,1707127872680,-500.0,0.00045087,7]
[313305492,1707127872690,-500.0,0.00045087,7]
[313305493,1707127872699,-500.0,0.00045087,7]
[313305494,1707127872709,-500.0,0.00045087,7]
[313305495,1707127872718,-500.0,0.00045087,7]
[313305496,1707127872727,-500.0,0.00045087,7]
[313305497,1707127872736,-552.2,0.00045087,7]
[313305498,1707127872746,-500.0,0.00045087,7]
[313305499,1707127872755,-500.0,0.00045087,7]
[313305500,1707127872765,-500.0,0.00045087,7]
[313305501,1707127872775,-500.0,0.00045087,7]
[313305502,1707127872785,-500.0,0.00045087,7]
[313305503,1707127872795,-500.0,0.00045087,7]
[313305504,1707127872804,-500.0,0.00045087,7]
[313305505,1707127872814,-500.0,0.00045087,7]
[313305506,1707127872823,-372.13438887,0.00045087,7]
[313305507,1707127872832,-1127.36,0.00045087,7]
[313305508,1707127872841,-500.0,0.00045087,7]
[313305509,1707127872851,-1539.46,0.00045087,7]
[313305510,1707127872860,-500.0,0.00045087,7]
[313305511,1707127872870,-824.07,0.00045087,7]
[313305512,1707127872880,-500.0,0.00045087,7]
[313305513,1707127872889,-1071.9,0.00045087,7]
[313305514,1707127872898,-500.0,0.00045087,7]
[313305515,1707127872907,-1205.02,0.00045087,7]
[313305516,1707127872917,-515.13299371,0.00045099,7]
[313305517,1707127872927,-12000.0,0.000451,120]
[313305518,1707127872936,-156.651,0.0004514,30]
[313305519,1707127872945,-500.0,0.00045186,7]
[313305520,1707127872955,-500.0,0.00045186,7]
[313305521,1707127872964,-500.0,0.00045186,7]
[313305522,1707127872974,-500.0,0.00045186,7]
[313305523,1707127872983,-1000.0,0.00045186,7]
[313305524,1707127872992,-417.85937607,0.00045186,7]
[313305525,1707127873002,-500.0,0.00045186,7]
[313305526,1707127873011,-544.02313474,0.00045186,7]
[313305527,1707127873020,-500.0,0.00045186,7]
[313305528,1707127873030,-588.87625733,0.00045186,7]
[313305529,1707127873039,-500.0,0.00045186,7]
[313305530,1707127873048,-500.0,0.00045186,7]
[313305531,1707127873058,-500.0,0.00045186,7]
[313305532,1707127873068,-462.27335237,0.00045186,7]
[313305533,1707127873077,-500.0,0.00045186,7]
[313305534,1707127873088,-500.0,0.00045186,7]
[313305535,1707127873098,-500.0,0.00045186,7]
[313305536,1707127873107,-204.07115038,0.00045186,7]
[313305537,1707127873117,-500.0,0.00045186,7]
[313305538,1707127873127,-500.0,0.00045186,7]
[313305539,1707127873137,-500.0,0.00045186,7]
[313305540,1707127873147,-500.0,0.00045186,2]
[313305541,1707127873156,-654.83,0.00045186,7]
[313305542,1707127873165,-500.0,0.00045186,2]
[313305543,1707127873174,-500.0,0.00045186,7]
[313305544,1707127873184,-500.0,0.00045186,7]
[313305545,1707127873194,-500.0,0.00045186,7]
[313305546,1707127873207,-500.0,0.00045186,7]
[313305547,1707127873216,-500.0,0.00045186,7]
[313305548,1707127873226,-490.8311497,0.00045186,7]
[313305549,1707127873235,-500.0,0.00045186,7]
[313305550,1707127873246,-500.19,0.00045186,7]
[313305551,1707127873255,-500.0,0.00045186,7]
[313305552,1707127873264,-500.0,0.00045186,7]
[313305553,1707127873273,-500.0,0.00045186,7]
[313305554,1707127873284,-500.0,0.00045186,7]
[313305555,1707127873293,-500.0,0.00045186,7]
[313305556,1707127873302,-604.55076125,0.00045186,7]
[313305557,1707127873311,-500.0,0.00045186,7]
[313305558,1707127873321,-500.0,0.00045186,2]
[313305559,1707127873329,-12000.0,0.000452,120]
[313305560,1707127873339,-500.0,0.00045205,7]
[313305561,1707127873348,-233.34580297,0.00045205,7]
[313305562,1707127873357,-204.76121992,0.00045205,7]
[313305563,1707127873366,-513.87,0.00045205,7]
[313305564,1707127873376,-500.0,0.00045205,7]
[313305565,1707127873385,-500.0,0.00045205,7]
[313305566,1707127873395,-500.0,0.00045205,7]
[313305567,1707127873404,-300.72123441,0.00045205,7]
[313305568,1707127873413,-500.0,0.00045205,7]
[313305569,1707127873422,-500.0,0.00045205,7]
[313305570,1707127873433,-500.0,0.00045205,30]
[313305571,1707127873443,-500.0,0.00045205,7]
[313305572,1707127873453,-500.0,0.00045205,7]
[313305573,1707127873462,-500.0,0.00045205,2]
[313305574,1707127873472,-500.0,0.00045205,7]
[313305575,1707127873480,-500.0,0.00045205,7]
[313305576,1707127873490,-693.27,0.00045205,7]
[313305577,1707127873499,-500.0,0.00045205,7]
[313305578,1707127873509,-500.0,0.00045205,7]
[313305579,1707127873518,-500.0,0.00045205,7]
[313305580,1707127873527,-500.0,0.00045205,7]
[313305581,1707127873537,-515.02723171,0.00045205,7]
[313305582,1707127873546,-500.0,0.00045205,7]
[313305583,1707127873555,-500.0,0.00045205,7]
[313305584,1707127873565,-500.0,0.00045205,7]
[313305585,1707127873574,-500.0,0.00045205,7]
[313305586,1707127873584,-500.0,0.00045205,7]
[313305587,1707127873593,-500.0,0.00045205,7]
[313305588,1707127873602,-500.0,0.00045205,7]
[313305589,1707127873611,-500.0,0.00045205,7]
[313305590,1707127873620,-500.0,0.00045205,7]
[313305591,1707127873630,-500.0,0.00045205,7]
[313305592,1707127873640,-500.0,0.00045205,7]
[313305593,1707127873648,-500.0,0.00045205,20]
[313305594,1707127873658,-500.0,0.00045205,7]
[313305595,1707127873667,-500.0,0.00045205,7]
[313305596,1707127873676,-500.0,0.00045205,7]
[313305597,1707127873686,-500.0,0.00045205,7]
[313305598,1707127873695,-500.0,0.00045205,7]
[313305599,1707127873704,-317.3651588,0.00045205,7]
[313305600,1707127873713,-500.0,0.00045205,7]
[313305601,1707127873723,-500.0,0.00045205,7]
[313305602,1707127873732,-500.0,0.00045205,7]
[313305603,1707127873741,-500.0,0.00045205,7]
[313305604,1707127873751,-500.0,0.00045205,7]
[313305605,1707127873760,-500.0,0.00045205,7]
[313305606,1707127873770,-500.0,0.00045205,7]
[313305607,1707127873780,-1000.0,0.00045205,30]
[313305608,1707127873790,-500.0,0.00045205,7]
[313305609,1707127873799,-500.0,0.00045205,7]
[313305610,1707127873808,-569.71,0.00045205,7]
[313305611,1707127873818,-500.0,0.00045205,7]
[313305612,1707127873827,-500.0,0.00045205,2]
[313305613,1707127873836,-496.70227817,0.00045205,7]
[313305614,1707127873846,-500.0,0.00045205,7]
[313305615,1707127873854,-500.0,0.00045205,7]
[313305616,1707127873863,-913.14,0.00045205,7]
[313305617,1707127873872,-622.14,0.00045205,7]
[313305618,1707127873881,-500.0,0.00045205,7]
[313305619,1707127873890,-500.0,0.00045205,7]
[313305620,1707127873899,-500.0,0.00045205,7]
[313305621,1707127873909,-563.13,0.00045205,7]
[313305622,1707127873918,-500.0,0.00045205,7]
[313305623,1707127873927,-869.02,0.00045205,7]
[313305624,1707127873937,-500.0,0.00045205,7]
[313305625,1707127873946,-500.0,0.00045205,7]
[313305626,1707127873955,-1336.9,0.00045205,7]
[313305627,1707127873964,-500.0,0.00045205,7]
[313305628,1707127873973,-1664.03,0.00045205,7]
[313305629,1707127873983,-500.0,0.00045205,7]
[313305630,1707127873992,-500.0,0.00045205,7]
[313305631,1707127874001,-522.17,0.00045205,7]
[313305632,1707127874010,-911.82,0.00045205,7]
[313305633,1707127874019,-876.24,0.00045205,7]
[313305634,1707127874029,-500.0,0.00045205,7]
[313305635,1707127874038,-1208.95,0.00045205,7]
[313305636,1707127874047,-242.44275858,0.00045205,7]
[313305637,1707127874056,-500.0,0.00045205,7]
[313305638,1707127874065,-500.0,0.00045205,7]
[313305639,1707127874075,-2208.28,0.00045205,5]
[313305640,1707127874084,-991.16,0.00045205,7]
[313305641,1707127874093,-500.0,0.00045205,7]
[313305642,1707127874103,-535.44998884,0.00045205,7]
[313305643,1707127874112,-500.0,0.00045205,7]
[313305644,1707127874121,-4873.25,0.00045205,7]
[313305645,1707127874131,-500.0,0.00045205,7]
[313305646,1707127874141,-500.0,0.00045205,7]
[313305647,1707127874151,-1507.15,0.00045205,7]
[313305648,1707127874161,-500.0,0.00045205,7]
[313305649,1707127874170,-500.0,0.00045205,7]
[313305650,1707127874179,-500.0,0.00045205,7]
[313305651,1707127874190,-500.0,0.00045205,7]
[313305652,1707127874200,-724.44,0.00045205,7]
[313305653,1707127874210,-890.52,0.00045205,7]
[313305654,1707127874219,-500.0,0.00045205,7]
[313305655,1707127874229,-829.46,0.00045205,7]
[313305656,1707127874239,-611.71,0.00045205,7]
[313305657,1707127874248,-500.0,0.00045205,7]
[313305658,1707127874257,-556.31,0.00045205,7]
[313305659,1707127874267,-687.93,0.00045205,7]
[313305660,1707127874277,-832.51,0.00045205,7]
[313305661,1707127874287,-871.11,0.00045205,7]
[313305662,1707127874297,-500.0,0.00045205,7]
[313305663,1707127874307,-500.0,0.00045205,7]
[313305664,1707127874316,-1243.36,0.00045205,7]
[313305665,1707127874325,-500.0,0.00045205,7]
[313305666,1707127874334,-3012.41,0.00045205,7]
[313305667,1707127874344,-500.0,0.00045205,7]
[313305668,1707127874353,-500.0,0.00045205,7]
[313305669,1707127874362,-590.23,0.00045205,7]
[313305670,1707127874372,-500.0,0.00045205,7]
[313305671,1707127874380,-500.0,0.00045205,7]
[313305672,1707127874389,-500.0,0.00045205,7]
[313305673,1707127874399,-500.0,0.00045205,7]
[313305674,1707127874408,-3014.28,0.00045205,7]
[313305675,1707127874417,-621.05,0.00045205,7]
[313305676,1707127874426,-589.53,0.00045205,7]
[313305677,1707127874435,-393.31,0.00045205,7]
[313305678,1707127874445,-213.91344032,0.00045205,7]
[313305679,1707127874454,-830.56,0.00045205,7]
[313305680,1707127874463,-1902.12,0.00045205,7]
[313305681,1707127874472,-1035.44,0.00045205,7]
[313305682,1707127874482,-2847.02,0.00045205,7]
[313305683,1707127874492,-807.95,0.00045205,7]
[313305684,1707127874501,-500.0,0.00045205,7]
[313305685,1707127874510,-500.0,0.00045205,7]
[313305686,1707127874520,-500.0,0.00045205,7]
[313305687,1707127874530,-500.0,0.00045205,7]
[313305688,1707127874539,-500.0,0.00045205,7]
[313305689,1707127874548,-536.86,0.00045205,7]
[313305690,1707127874557,-2651.98,0.00045205,7]
[313305691,1707127874567,-1214.43,0.00045205,7]
[313305692,1707127874576,-500.0,0.00045205,7]
[313305693,1707127874586,-753.45,0.00045205,7]
[313305694,1707127874595,-500.0,0.00045205,7]
[313305695,1707127874604,-500.0,0.00045205,7]
[313305696,1707127874614,-622.87,0.00045205,7]
[313305697,1707127874623,-1152.32,0.00045205,7]
[313305698,1707127874632,-1196.94,0.00045205,7]
[313305699,1707127874642,-500.0,0.00045205,7]
[313305700,1707127874651,-530.27,0.00045205,7]
[313305701,1707127874660,-525.01,0.00045205,7]
[313305702,1707127874670,-285.04,0.00045205,7]
[313305703,1707127874679,-500.0,0.00045205,7]
[313305704,1707127874688,-167.04798036,0.00045205,7]
[313305705,1707127874698,-1136.73,0.00045205,7]
[313305706,1707127874707,-500.0,0.00045205,7]
[313305707,1707127874717,-500.0,0.00045205,7]
[313305708,1707127874726,-500.0,0.00045205,7]
[313305709,1707127874735,-500.0,0.00045205,7]
[313305710,1707127874744,-768.14,0.00045205,7]
[313305711,1707127874753,-500.0,0.00045205,7]
[313305712,1707127874763,-500.0,0.00045205,7]
[313305713,1707127874772,-1043.92,0.00045205,7]
[313305714,1707127874781,-717.13,0.00045205,7]
[313305715,1707127874790,-500.0,0.00045205,7]
[313305716,1707127874800,-500.0,0.00045205,7]
[313305717,1707127874809,-500.0,0.00045205,7]
[313305718,1707127874818,-567.71,0.00045205,7]
[313305719,1707127874828,-2573.61,0.00045205,7]